Workbook

Sheet Instructions
B2: Tab name | C2: What you do here | D2: Can I edit anything in this tab?
B4: Dashboard | C4: Select a local program | D4: You can select the local program in cell C1 (at the top)
C5: View the graphs associated with that program | D5: You must enter the timeperiod to which all graphs/data are referring.
C6: Click the "Create pdfs of all programs" button to download all pdfs*
B8: View Program Data | C8: Select a local program to view its data | D8: You can select the local program in cell J1 (at the top)
B10: Enter Local Program Data | C10: Enter data for all your local programs in yellow cells | D10: Yes, please. You can (and should) edit any yellow-background cell.
C11: Please note that all program names must be unique. Duplicate program names are highlighted in red. It is important to make program names unique if you plan to download pdf files because if two programs have the same name, only one pdf will be created for one of the duplicate programs. | D11: It is recommended that you copy/PASTE-VALUES for any data you bring in from other sources in order to keep the formatting in this sheet.
C16: * Downloading pdfs:
C17: 1. BEFORE clicking the button, set up the folder(s) where you would like to store all files
C18: For example, create a folder called DaSyFiscalData/2017_07_27
C19: Hint: If you will be downloading graphs periodically, set up all folders ahead of time
C20: For example, folders: DaSyFiscalData/2017_08_27, DaSyFiscalData/2017_09_27
C21: 2. When you click the "Create pdfs of all programs" button, select the folder from Step 1.
C22: 3. The macro will create one 2-page pdf per program for each program you have entered
C23: (file names are the names you gave the programs)
C24: If you have a lot of programs, this step might take a couple minutes.
C25: 4. The next time you save files, either select a different folder to save a new set of files OR
C26: if you select the same folder, the new files will replace the previous files.

Sheet Dashboard
A1: Local Program Name: | C1: Wise Kids | I1: NOTES
A2: Date Range (rolling 12-months): | C2: July 1, 2016 - June 30, 2017
A3: Timestamp: | C3: =IFERROR(VLOOKUP(C1,'Enter Local Program Data'!B:C,2,FALSE),"") -> 2017-09-05
B5: Percentage of Children Referred for EI Services Who Are Evaluated, Eligible, and Served
B6: ="Statewide and by "&C1 -> Statewide and by Wise Kids | F6: =$C$2 -> July 1, 2016 - June 30, 2017
I9: =IFERROR("• "&Calc!M5*100&"% of the children referred to "&C1&" are now receiving EI services, as compared to "&Calc!M4*100&"% of the children referred statewide who are now receiving EI services.","% of the children referred to [LOCAL PROGRAM] are now receiving EI services, as compared to % of the children referred statewide who are now receiving EI services.") -> • 93% of the children referred to Wise Kids are now receiving EI services, as compared to 80% of the children referred statewide who are now receiving EI services.
I10: =IFERROR("• "&100*Calc!L5&"% of the children referred to "&C1&" were found eligible for EI services, as compared to "&100*Calc!L4&"% of the children referred statewide who were found eligible for EI services.","% of the children referred to [LOCAL PROGRAM] were found eligible for EI services, as compared to % of the children referred statewide who were found eligible for EI services.") -> • 93% of the children referred to Wise Kids were found eligible for EI services, as compared to 86% of the children referred statewide who were found eligible for EI services.
I11: =IFERROR("• "&100*Calc!K5&"% of the children referred to "&C1&" were evaluated for EI services, as compared to "&100*Calc!K4&"% of the children referred statewide who were evaluated for EI services.","% of the children referred to [LOCAL PROGRAM] were evaluated for EI services, as compared to % of the children referred statewide who were evaluated for EI services.") -> • 93% of the children referred to Wise Kids were evaluated for EI services, as compared to 91% of the children referred statewide who were evaluated for EI services.
I12: ="• The Statewide Sum is based on information from "&Statewide!G5&" programs entered." -> • The Statewide Sum is based on information from 6 programs entered.
B16: ="Total Expenses by Type for Statewide Average and "&C1 -> Total Expenses by Type for Statewide Average and Wise Kids | F16: =$C$2 -> July 1, 2016 - June 30, 2017
B17: Infrastructure and Administrative Versus Direct Services
B18: Infrastructure & Administrative vs. Direct Services
I19: =IFERROR("• "&100*Calc!J9&"% of the "&C1&" expenses were for Infrastructure and Administration compared to "&100*Calc!K9&"% for the statewide average.","% of the [LOCAL PROGRAM] expenses were for Infrastructure and Administration compared to % for the statewide average.") -> • 36% of the Wise Kids expenses were for Infrastructure and Administration compared to 38% for the statewide average.
I20: =IFERROR("• "&100*Calc!J10&"% of the "&C1&" expenses were for Direct Services compared to "&100*Calc!K10&"% for the statewide average.","% of the [LOCAL PROGRAM] expenses were for Direct Services compared to % for the statewide average.") -> • 64% of the Wise Kids expenses were for Direct Services compared to 62% for the statewide average.
I21: ="• The Statewide Average is based on information from "&Statewide!G5&" programs entered." -> • The Statewide Average is based on information from 6 programs entered.
B28: ="Budget by Funding Source for "&C1 -> Budget by Funding Source for Wise Kids | F28: =$C$2 -> July 1, 2016 - June 30, 2017
I30: ="• The top three Funding Sources for the Local Program were: " -> • The top three Funding Sources for the Local Program were:
I31: =IFERROR("- "&Calc!J22&" ("&100*Calc!J20&"%) followed by ","-") -> - Private Insurance (56%) followed by
I32: =IFERROR("- "&Calc!I22&" ("&100*Calc!I20&"%) and ","-") -> - Medicaid (30%) and
I33: =IFERROR("- "&Calc!H22&" ("&100*Calc!H20&"%).","-") -> - State General Funds (5%).
I34: ="• These funding sources were followed by: " -> • These funding sources were followed by:
I35: =IFERROR("- "&Calc!G22&" ("&100*Calc!G20&"%), ","-") -> - State Part C (4%),
I36: =IFERROR("- "&Calc!F22&" ("&100*Calc!F20&"%), ","-") -> - Federal Part C (4%),
I37: =IFERROR("- "&Calc!E22&" ("&100*Calc!E20&"%), ","-") -> - CHIP (1%),
I38: =IFERROR("- "&Calc!D22&" ("&100*Calc!D20&"%), and ","-") -> - Local Funds (0.1%), and
I39: =IFERROR("- "&Calc!C22&" ("&100*Calc!C20&"%)","-") -> - Family Fees (0.1%)
I40: =IFERROR("which were less than "&Calc!L20&" percent of the total budget.","which were less than x percent of the total budget.") -> which were less than ten percent of the total budget.
B44: Percentage of EI Children Enrolled in Private Insurance Versus | F44: =$C$2 -> July 1, 2016 - June 30, 2017
B45: Percentage of Funding Budgeted for Private Insurance, | I45: ="• The local program built their budget with the expectation that: " -> • The local program built their budget with the expectation that:
B46: ="by Statewide Average and "&C1 -> by Statewide Average and Wise Kids
I47: =IFERROR(100*Calc!D28&"% of the revenue would come from private insurance.","% of the revenue would come from private insurance.") -> 56% of the revenue would come from private insurance.
I49: =IFERROR("This percentage is based on the fact that "&100*Calc!C28&"% of the children had private insurance.","This percentage is based on the fact that % of the children had private insurance.") -> This percentage is based on the fact that 80% of the children had private insurance.
I52: ="• In a statewide average of all programs: " -> • In a statewide average of all programs:
I54: =IFERROR(100*Calc!D27&"% of the budget would come from private insurance.","% of the budget would come from private insurance.") -> 31% of the budget would come from private insurance.
I56: =IFERROR("This percentage is based on the fact that "&100*Calc!C27&"% of the children had private insurance.","This percentage is based on the fact that % of the children had private insurance.") -> This percentage is based on the fact that 45% of the children had private insurance.
I58: ="The Statewide Average is based on information from "&Statewide!K5&" programs entered." -> The Statewide Average is based on information from 6 programs entered.
B63: Percentage of EI Children Enrolled in Medicaid Versus | F63: =$C$2 -> July 1, 2016 - June 30, 2017
B64: Percentage of Funding Budgeted for Medicaid, | I64: ="• The local program built their budget with the expectation that: " -> • The local program built their budget with the expectation that:
B65: ="by Statewide Average and "&C1 -> by Statewide Average and Wise Kids
I66: =IFERROR(100*Calc!H28&"% of the revenue would come from Medicaid because ","% of the revenue would come from Medicaid because ") -> 30% of the revenue would come from Medicaid because
I68: =IFERROR(100*Calc!G28&"% of the children were enrolled in Medicaid.","% of the children were enrolled in Medicaid.") -> 27% of the children were enrolled in Medicaid.
I71: ="• In a statewide average of all programs: " -> • In a statewide average of all programs:
I73: =IFERROR(100*Calc!H27&"% of the budget would come from Medicaid;","% of the budget would come from Medicaid;") -> 49% of the budget would come from Medicaid;
I75: =IFERROR(Calc!G27*100&"% of the children had Medicaid.","% of the children had Medicaid.") -> 52% of the children had Medicaid.
I77: ="The Statewide Average is based on information from "&Statewide!M5&" programs entered." -> The Statewide Average is based on information from 6 programs entered.
B82: Current Receipts and Anticipated Receipts to Meet Budget, | F82: =$C$2 -> July 1, 2016 - June 30, 2017
B83: ="by Funding Source for "&C1 -> by Funding Source for Wise Kids | F83: =IFERROR("Data updated: "&MONTH($C$3)&"/"&DAY($C$3)&"/"&YEAR($C$3),"Data updated:") -> Data updated: 9/5/2017
I86: ="• The top three funding sources with the highest Current Receipts are: " -> • The top three funding sources with the highest Current Receipts are:
I88: =IFERROR("- "&Calc!C39&" ($"&Calc!E39&"), ","-") -> - Local Funds ($200,000),
I89: =IFERROR("- "&Calc!C38&" ($"&Calc!E38&"), and ","-") -> - Family Fees ($150,000), and
I90: =IFERROR("- "&Calc!C37&" ($"&Calc!E37&").","-") -> - CHIP ($100,000).
I91: ="These funding sources are followed by: " -> These funding sources are followed by:
I92: =IFERROR("- "&Calc!C36&" ($"&Calc!E36&"), ","-") -> - Private Insurance ($50,000),
I93: =IFERROR("- "&Calc!C35&" ($"&Calc!E35&"), ","-") -> - Federal Part C ($40,000),
I94: =IFERROR("- "&Calc!C34&" ($"&Calc!E34&"), ","-") -> - State Part C ($30,000),
I95: =IFERROR("- "&Calc!C33&" ($"&Calc!E33&"), and ","-") -> - State General Funds ($20,000), and
I96: =IFERROR("- "&Calc!C32&" ($"&Calc!E32&").","-") -> - Medicaid ($10,000).
I100: ="• The top three funding sources with the highest Anticipated Receipts were: " -> • The top three funding sources with the highest Anticipated Receipts were:
I102: =IFERROR("- "&Calc!G39&" ($"&Calc!I39&"), ","-") -> - Local Funds ($100,000),
I103: =IFERROR("- "&Calc!G38&" ($"&Calc!I38&"), and ","-") -> - Medicaid ($77,000), and
I104: =IFERROR("- "&Calc!G37&" ($"&Calc!I37&"). ","-") -> - State General Funds ($76,000).
I105: ="These funding sources were followed by: " -> These funding sources were followed by:
I106: =IFERROR("- "&Calc!G36&" ($"&Calc!I36&"), ","-") -> - Family Fees ($75,000),
I107: =IFERROR("- "&Calc!G35&" ($"&Calc!I35&"), ","-") -> - State Part C ($75,000),
I108: =IFERROR("- "&Calc!G34&" ($"&Calc!I34&"), ","-") -> - CHIP ($50,000),
I109: =IFERROR("- "&Calc!G33&" ($"&Calc!I33&"), and ","-") -> - Federal Part C ($50,000), and
I110: =IFERROR("- "&Calc!G32&" ($"&Calc!I32&").","-") -> - Private Insurance ($25,000).
I113: Data updated:
I114: =IF(C3="","Enter timestamp on Enter Local Program Data tab",C3) -> 2017-09-05

Sheet Enter Local Program Data
A1: Program Number | B1: Local Program Name | C1: Timestamp | D1: Children Served (EI) | H1: Expenses | J1: Budget by Source | R1: Percent of Children Enrolled | V1: Receipts by Source | AM1: PERCENT OF FUNDING
D2: Referred | E2: Evaluated | F2: Eligible | G2: Served | H2: Infrastructure & Administrative | I2: Direct Services | J2: Local Funds | K2: Family Fees | L2: CHIP | M2: Private Insurance | N2: Federal Part C | O2: State Part C | P2: State General Funds | Q2: Medicaid | R2: Private Insurance | T2: Medicaid | V2: Local Funds | X2: Family Fees | Z2: CHIP | AB2: Private Insurance | AD2: Federal Part C | AF2: State Part C | AH2: State General Funds | AJ2: Medicaid | AM2: M / sum(J:Q) | AN2: Q / sum(J:Q)
V3: Current | W3: Anticipated | X3: Current | Y3: Anticipated | Z3: Current | AA3: Anticipated | AB3: Current | AC3: Anticipated | AD3: Current | AE3: Anticipated | AF3: Current | AG3: Anticipated | AH3: Current | AI3: Anticipated | AJ3: Current | AK3: Anticipated | AM3: Private Insurance | AN3: Medicaid
A4: =IF(A1=$A$1,IF(B4="",0,1),IF(B4="",A1,A1+1)) -> 1 | B4: Happy Kids | C4: 2017-06-01 | D4: 100 | E4: 78 | F4: 62 | G4: 60 | H4: 2345000 | I4: 3460000 | J4: 2940 | K4: 9800 | L4: 134553.02 | M4: 1709290.253 | N4: 735000 | O4: 780599.645 | P4: 980041.16 | Q4: 4628927.1 | R4: 0.3 | T4: 0.59 | V4: 1500 | W4: 1500 | X4: 5000 | Y4: 5000 | Z4: 96109 | AA4: 41190 | AB4: 112500 | AC4: 37500 | AD4: 637500 | AE4: 112500 | AF4: 637224 | AG4: 159306 | AH4: 870037 | AI4: 130005 | AJ4: 2429041 | AK4: 607260 | AM4: =IFERROR(ROUND(M4/SUM(J4:Q4),2),"-") -> 0.19 | AN4: =IFERROR(ROUND(Q4/SUM(J4:Q4),2),"-") -> 0.52
A5: =IF(A4=$A$1,IF(B5="",0,1),IF(B5="",A4,A4+1)) -> 2 | B5: Creative Kids | C5: 2017-06-02 | D5: 150 | E5: 149 | F5: 149 | G5: 85 | H5: 1234567 | I5: 2345678 | J5: 3840 | K5: 10560 | L5: 122207.04 | M5: 4025860.75 | N5: 739200 | O5: 774269.04 | P5: 961000.32 | Q5: 6545915.626 | R5: 0.5 | T5: 0.51 | V5: 6000 | W5: 4000 | X5: 7000 | Y5: 7000 | Z5: 106109 | AA5: 40190 | AB5: 102500 | AC5: 47500 | AD5: 657500 | AE5: 102500 | AF5: 639224 | AG5: 154306 | AH5: 820037 | AI5: 150005 | AJ5: 2529041 | AK5: 603260 | AM5: =IFERROR(ROUND(M5/SUM(J5:Q5),2),"-") -> 0.31 | AN5: =IFERROR(ROUND(Q5/SUM(J5:Q5),2),"-") -> 0.5
A6: 3 | B6: Inventive Kids | C6: 2017-06-03 | D6: 20 | E6: 10 | F6: 5 | G6: 2 | H6: 234567 | I6: 345678 | J6: 2760 | K6: 11040 | L6: 107915.08 | M6: 3093186.639 | N6: 726800 | O6: 751207.83 | P6: 921878.64 | Q6: 6826695.849 | R6: 0.25 | T6: 0.77 | V6: 7000 | W6: 3000 | X6: 9000 | Y6: 9000 | Z6: 116109 | AA6: 39190 | AB6: 92500 | AC6: 57500 | AD6: 677500 | AE6: 92500 | AF6: 641224 | AG6: 149306 | AH6: 770037 | AI6: 170005 | AJ6: 2629041 | AK6: 599260 | AM6: 0.25 | AN6: 0.55
A7: 4 | B7: Ingenius Kids | C7: 2017-06-04 | D7: 900 | E7: 800 | F7: 700 | G7: 600 | H7: 345678 | I7: 456789 | J7: 1700 | K7: 11050 | L7: 91204.15 | M7: 3045793.112 | N7: 688500 | O7: 702550.7125 | P7: 852585.7 | Q7: 5448312.842 | R7: 0.4 | T7: 0.44 | V7: 8000 | W7: 2000 | X7: 11000 | Y7: 11000 | Z7: 126109 | AA7: 38190 | AB7: 82500 | AC7: 67500 | AD7: 697500 | AE7: 82500 | AF7: 643224 | AG7: 144306 | AH7: 720037 | AI7: 190005 | AJ7: 2729041 | AK7: 595260 | AM7: 0.28 | AN7: 0.5
A8: 5 | B8: Energized Kids | C8: 2017-06-01 | D8: 700 | E8: 650 | F8: 650 | G8: 650 | H8: 1212121 | I8: 2121212 | J8: 11250 | K8: 9000 | L8: 147750 | M8: 2910144.161 | N8: 622500 | O8: 627397.6875 | P8: 753031.5 | Q8: 6738033.922 | R8: 0.42 | T8: 0.55 | V8: 200000 | W8: 100000 | X8: 150000 | Y8: 75000 | Z8: 100000 | AA8: 50000 | AB8: 50000 | AC8: 25000 | AD8: 40000 | AE8: 50000 | AF8: 30000 | AG8: 75000 | AH8: 20000 | AI8: 76000 | AJ8: 10000 | AK8: 77000 | AM8: 0.25 | AN8: 0.57
A9: 6 | B9: Wise Kids | C9: 2017-09-05 | D9: 700 | E9: 650 | F9: 650 | G9: 650 | H9: 1212121 | I9: 2121212 | J9: 7500 | K9: 6000 | L9: 98500 | M9: 5557240.539 | N9: 415000 | O9: 418265.125 | P9: 502021 | Q9: 2979260.451 | R9: 0.8 | T9: 0.27 | V9: 200000 | W9: 100000 | X9: 150000 | Y9: 75000 | Z9: 100000 | AA9: 50000 | AB9: 50000 | AC9: 25000 | AD9: 40000 | AE9: 50000 | AF9: 30000 | AG9: 75000 | AH9: 20000 | AI9: 76000 | AJ9: 10000 | AK9: 77000 | AM9: 0.56 | AN9: 0.3
A10: 6 | AM10: - | AN10: -
A11: 6 | AM11: - | AN11: -
A12: 6 | AM12: - | AN12: -
A13: 6 | AM13: - | AN13: -
A14: 6 | AM14: - | AN14: -
A15: 6 | AM15: - | AN15: -
A16: 6 | AM16: - | AN16: -
A17: 6 | AM17: - | AN17: -
A18: 6 | AM18: - | AN18: -
A19: 6 | AM19: - | AN19: -
A20: 6 | AM20: - | AN20: -
A21: 6 | AM21: - | AN21: -
A22: 6 | AM22: - | AN22: -
A23: 6 | AM23: - | AN23: -
AM24: - | AN24: -
AM25: - | AN25: -
AM26: - | AN26: -
AM27: - | AN27: -
AM28: - | AN28: -
AM29: - | AN29: -
AM30: - | AN30: -
AM31: - | AN31: -
AM32: - | AN32: -
AM33: - | AN33: -
AM34: - | AN34: -
AM35: - | AN35: -
AM36: - | AN36: -
AM37: - | AN37: -
AM38: - | AN38: -
AM39: - | AN39: -
AM40: - | AN40: -
AM41: - | AN41: -
AM42: - | AN42: -
AM43: - | AN43: -
AM44: - | AN44: -
AM45: - | AN45: -
AM46: - | AN46: -
AM47: - | AN47: -
AM48: - | AN48: -
AM49: - | AN49: -
AM50: - | AN50: -
AM51: - | AN51: -
AM52: - | AN52: -
AM53: - | AN53: -
AM54: - | AN54: -
AM55: - | AN55: -
AM56: - | AN56: -
AM57: - | AN57: -
AM58: - | AN58: -
AM59: - | AN59: -
AM60: - | AN60: -
AM61: - | AN61: -
AM62: - | AN62: -
AM63: - | AN63: -
AM64: - | AN64: -
AM65: - | AN65: -
AM66: - | AN66: -
AM67: - | AN67: -
AM68: - | AN68: -
AM69: =IFERROR(ROUND(M69/SUM(J69:Q69),2),"-") -> - | AN69: =IFERROR(ROUND(Q69/SUM(J69:Q69),2),"-") -> -
AM70: - | AN70: -
AM71: - | AN71: -
AM72: - | AN72: -
AM73: - | AN73: -
AM74: - | AN74: -
AM75: - | AN75: -
AM76: - | AN76: -
AM77: - | AN77: -
AM78: - | AN78: -
AM79: - | AN79: -
AM80: - | AN80: -
AM81: - | AN81: -
AM82: - | AN82: -
AM83: - | AN83: -
AM84: - | AN84: -
AM85: - | AN85: -
A86: =IF(A85=$A$1,IF(B86="",0,1),IF(B86="",A85,A85+1)) -> 0 | AM86: - | AN86: -
A87: 0 | AM87: - | AN87: -
A88: 0 | AM88: - | AN88: -
A89: 0 | AM89: - | AN89: -
A90: 0 | AM90: - | AN90: -
A91: 0 | AM91: - | AN91: -
A92: 0 | AM92: - | AN92: -
A93: 0 | AM93: - | AN93: -
A94: 0 | AM94: - | AN94: -
A95: 0 | AM95: - | AN95: -
A96: 0 | AM96: - | AN96: -
A97: 0 | AM97: - | AN97: -
AM98: - | AN98: -
AM99: - | AN99: -
AM100: - | AN100: -
AM101: - | AN101: -
AM102: - | AN102: -
AM103: - | AN103: -
AM104: - | AN104: -
AM105: - | AN105: -
AM106: - | AN106: -
AM107: - | AN107: -
AM108: - | AN108: -
AM109: - | AN109: -
AM110: - | AN110: -
AM111: - | AN111: -
AM112: - | AN112: -
AM113: - | AN113: -
AM114: - | AN114: -
AM115: - | AN115: -
AM116: - | AN116: -
AM117: - | AN117: -
AM118: - | AN118: -
AM119: - | AN119: -
AM120: - | AN120: -
AM121: - | AN121: -
AM122: - | AN122: -
AM123: - | AN123: -
AM124: - | AN124: -
AM125: - | AN125: -
AM126: - | AN126: -
AM127: - | AN127: -
AM128: =IFERROR(ROUND(M128/SUM(J128:Q128),2),"-") -> - | AN128: =IFERROR(ROUND(Q128/SUM(J128:Q128),2),"-") -> -
AM129: - | AN129: -
AM130: - | AN130: -
AM131: - | AN131: -
AM132: - | AN132: -
AM133: - | AN133: -
AM134: - | AN134: -
AM135: - | AN135: -
AM136: - | AN136: -
AM137: - | AN137: -
AM138: - | AN138: -
AM139: - | AN139: -
AM140: - | AN140: -
AM141: - | AN141: -
AM142: - | AN142: -
AM143: - | AN143: -
AM144: - | AN144: -
AM145: - | AN145: -
AM146: - | AN146: -
AM147: - | AN147: -
AM148: - | AN148: -
AM149: - | AN149: -
AM150: - | AN150: -
AM151: - | AN151: -
AM152: - | AN152: -
AM153: - | AN153: -
AM154: - | AN154: -
AM155: - | AN155: -
AM156: - | AN156: -
AM157: - | AN157: -
AM158: - | AN158: -
AM159: - | AN159: -
AM160: - | AN160: -
AM161: - | AN161: -
AM162: - | AN162: -
AM163: - | AN163: -
AM164: - | AN164: -
AM165: - | AN165: -
AM166: - | AN166: -
AM167: - | AN167: -
AM168: - | AN168: -
AM169: - | AN169: -
AM170: - | AN170: -
AM171: - | AN171: -
AM172: =IFERROR(ROUND(M172/SUM(J172:Q172),2),"-") -> - | AN172: =IFERROR(ROUND(Q172/SUM(J172:Q172),2),"-") -> -
AM173: - | AN173: -
AM174: - | AN174: -
AM175: - | AN175: -
AM176: - | AN176: -
AM177: - | AN177: -
AM178: - | AN178: -
AM179: - | AN179: -
AM180: - | AN180: -
AM181: - | AN181: -
AM182: - | AN182: -
AM183: - | AN183: -
AM184: - | AN184: -
AM185: - | AN185: -
AM186: - | AN186: -
AM187: - | AN187: -
AM188: - | AN188: -
AM189: - | AN189: -
AM190: - | AN190: -
AM191: - | AN191: -
AM192: - | AN192: -
AM193: - | AN193: -
AM194: - | AN194: -
AM195: - | AN195: -
AM196: - | AN196: -
AM197: - | AN197: -
AM198: - | AN198: -
AM199: - | AN199: -
AM200: - | AN200: -

Sheet View Program Data
A1: Select Local Program Name: | J1: Inventive Kids
A2: Date Range (rolling 12-months): | J2: =Dashboard!C2 -> July 1, 2016 - June 30, 2017
A3: Timestamp: | J3: =IFERROR(VLOOKUP(J1,'Enter Local Program Data'!B:C,2,FALSE),"") -> 2017-06-03
B5: ="Percentage of Children Referred for EI Services Who Are Evaluated, Eligible, and Served Statewide and by "&J1 -> Percentage of Children Referred for EI Services Who Are Evaluated, Eligible, and Served Statewide and by Inventive Kids
L6: Referred | O6: Evaluated | R6: Eligible | U6: Served
C7: Statewide | L7: =Statewide!C4 -> 2570 | O7: =Statewide!D4 -> 2337 | R7: =Statewide!E4 -> 2216 | U7: =Statewide!F4 -> 2047
C8: =J1 -> Inventive Kids | L8: =IFERROR(VLOOKUP($J$1,'Enter Local Program Data'!B:G,3,FALSE),0) -> 20 | O8: =IFERROR(VLOOKUP($J$1,'Enter Local Program Data'!B:G,4,FALSE),0) -> 10 | R8: =IFERROR(VLOOKUP($J$1,'Enter Local Program Data'!B:G,5,FALSE),0) -> 5 | U8: =IFERROR(VLOOKUP($J$1,'Enter Local Program Data'!B:G,6,FALSE),0) -> 2
B10: ="Total Expenses by Type for Statewide Average and "&J1&" Infrastructure and Administrative Versus Direct Services" -> Total Expenses by Type for Statewide Average and Inventive Kids Infrastructure and Administrative Versus Direct Services
L11: =J1 -> Inventive Kids | R11: Statewide Average
C12: Infrastructure and Administrative | L12: =IFERROR(VLOOKUP(J1,'Enter Local Program Data'!B:I,7,FALSE),0) -> 234567 | R12: =IFERROR(Statewide!G6,0) -> 1097342.333
C13: Direct Services | L13: =IFERROR(VLOOKUP(J1,'Enter Local Program Data'!B:I,8,FALSE),0) -> 345678 | R13: =IFERROR(Statewide!H6,0) -> 1808428.167
C14: Total | L14: =L12+L13 -> 580245 | R14: =R12+R13 -> 2905770.5
B16: ="Budget by Funding Source for "&J1 -> Budget by Funding Source for Inventive Kids
B17: Local Funds | F17: Family Fees | J17: CHIP | N17: Private Insurance | S17: Federal Part C | W17: State Part C | AA17: State General Funds | AG17: Medicaid | AK17: Total
B18: =IFERROR(VLOOKUP(J1,'Enter Local Program Data'!B:Q,9,FALSE),0) -> 2760 | F18: =IFERROR(VLOOKUP(J1,'Enter Local Program Data'!B:Q,10,FALSE),0) -> 11040 | J18: =IFERROR(VLOOKUP(J1,'Enter Local Program Data'!B:Q,11,FALSE),0) -> 107915.08 | N18: =IFERROR(VLOOKUP(J1,'Enter Local Program Data'!B:Q,12,FALSE),0) -> 3093186.639 | S18: =IFERROR(VLOOKUP(J1,'Enter Local Program Data'!B:Q,13,FALSE),0) -> 726800 | W18: =IFERROR(VLOOKUP(J1,'Enter Local Program Data'!B:Q,14,FALSE),0) -> 751207.83 | AA18: =IFERROR(VLOOKUP(J1,'Enter Local Program Data'!B:Q,15,FALSE),0) -> 921878.64 | AG18: =IFERROR(VLOOKUP(J1,'Enter Local Program Data'!B:Q,16,FALSE),0) -> 6826695.849 | AK18: =SUM(B18:AJ18) -> 12441484.04
B19: =IFERROR(B18/AK18,"-") -> 0.0002218384874 | F19: =IFERROR(F18/AK18,"-") -> 0.0008873539496 | J19: =IFERROR(J18/AK18,"-") -> 0.008673810911 | N19: =IFERROR(N18/AK18,"-") -> 0.2486187845 | S19: =IFERROR(S18/AK18,"-") -> 0.05841746835 | W19: =IFERROR(W18/AK18,"-") -> 0.06037927852 | AA19: =IFERROR(AA18/AK18,"-") -> 0.07409716053 | AG19: =IFERROR(AG18/AK18,"-") -> 0.5487043047 | AK19: =SUM(B19:AJ19) -> 1
B21: ="Percentage of EI Children Enrolled in (*) Versus Percentage of Funding Budgeted for (*), by Statewide Average and "&J1 -> Percentage of EI Children Enrolled in (*) Versus Percentage of Funding Budgeted for (*), by Statewide Average and Inventive Kids
B22: Private Insurance | I22: Percentage of EI Children Enrolled in Private Insurance | N22: Percentage of Funding Budgeted for Private Insurance | U22: Medicaid | AB22: Percentage of EI Children Enrolled in Medicaid | AG22: Percentage of Funding Budgeted for Medicaid
B23: =Calc!B27 -> Statewide Average | I23: =IFERROR(Statewide!J4,0) -> 0.45 | N23: =IFERROR(Statewide!K4,0) -> 0.31 | U23: =Calc!F27 -> Statewide Average | AB23: =IFERROR(Statewide!L4,0) -> 0.52 | AG23: =IFERROR(Statewide!M4,0) -> 0.49
B24: =J1 -> Inventive Kids | I24: =IFERROR(VLOOKUP(J1,'Enter Local Program Data'!B:U,17,FALSE),0) -> 0.25 | N24: =IFERROR(VLOOKUP(J1,'Enter Local Program Data'!B:AN,38,FALSE),0) -> 0.25 | U24: =Calc!F28 -> Wise Kids | AB24: =IFERROR(VLOOKUP(J1,'Enter Local Program Data'!B:U,19,FALSE),0) -> 0.77 | AG24: =IFERROR(VLOOKUP(J1,'Enter Local Program Data'!B:AN,39,FALSE),0) -> 0.55
B26: ="Current Receipts and Anticipated Receipts to Meet Budget, by Funding Source for "&J1 -> Current Receipts and Anticipated Receipts to Meet Budget, by Funding Source for Inventive Kids
H27: Current | L27: Anticipated | P27: Total
B28: Local Funds | H28: =IFERROR(VLOOKUP(J1,'Enter Local Program Data'!B:AK,21,FALSE),0) -> 7000 | L28: =IFERROR(VLOOKUP(J1,'Enter Local Program Data'!B:AK,22,FALSE),0) -> 3000 | P28: =H28+L28 -> 10000
B29: Family Fees | H29: =IFERROR(VLOOKUP(J1,'Enter Local Program Data'!B:AK,23,FALSE),0) -> 9000 | L29: =IFERROR(VLOOKUP(J1,'Enter Local Program Data'!B:AK,24,FALSE),0) -> 9000 | P29: =H29+L29 -> 18000
B30: CHIP | H30: =IFERROR(VLOOKUP(J1,'Enter Local Program Data'!B:AK,25,FALSE),0) -> 116109 | L30: =IFERROR(VLOOKUP(J1,'Enter Local Program Data'!B:AK,26,FALSE),0) -> 39190 | P30: 155299
B31: Private Insurance | H31: =IFERROR(VLOOKUP(J1,'Enter Local Program Data'!B:AK,27,FALSE),0) -> 92500 | L31: =IFERROR(VLOOKUP(J1,'Enter Local Program Data'!B:AK,28,FALSE),0) -> 57500 | P31: 150000
B32: Federal Part C | H32: =IFERROR(VLOOKUP(J1,'Enter Local Program Data'!B:AK,29,FALSE),0) -> 677500 | L32: =IFERROR(VLOOKUP(J1,'Enter Local Program Data'!B:AK,30,FALSE),0) -> 92500 | P32: 770000
B33: State Part C | H33: =IFERROR(VLOOKUP(J1,'Enter Local Program Data'!B:AK,31,FALSE),0) -> 641224 | L33: =IFERROR(VLOOKUP(J1,'Enter Local Program Data'!B:AK,32,FALSE),0) -> 149306 | P33: 790530
B34: State General Funds | H34: =IFERROR(VLOOKUP(J1,'Enter Local Program Data'!B:AK,33,FALSE),0) -> 770037 | L34: =IFERROR(VLOOKUP(J1,'Enter Local Program Data'!B:AK,34,FALSE),0) -> 170005 | P34: 940042
B35: Medicaid | H35: =IFERROR(VLOOKUP(J1,'Enter Local Program Data'!B:AK,35,FALSE),0) -> 2629041 | L35: =IFERROR(VLOOKUP(J1,'Enter Local Program Data'!B:AK,36,FALSE),0) -> 599260 | P35: 3228301
B36: TOTAL REVENUE | H36: =SUM(H28:H35) -> 4942411 | L36: =SUM(L28:L35) -> 1119761 | P36: 6062172

Sheet Statewide (hidden)
C1: Children Served (EI) | G1: Expenses
B2: Statewide | C2: Referred | D2: Evaluated | E2: Eligible | F2: Served | G2: Infrastructure and Administrative | H2: Direct Services | J2: Statewide Private Insurance | L2: Statewide Medicaid
J3: Percent of Children Enrolled | K3: Percent of Funding Budgeted | L3: Percent of Children Enrolled | M3: Percent of Funding Budgeted
B4: Sum | C4: =SUM('Enter Local Program Data'!D:D) -> 2570 | D4: =SUM('Enter Local Program Data'!E:E) -> 2337 | E4: =SUM('Enter Local Program Data'!F:F) -> 2216 | F4: =SUM('Enter Local Program Data'!G:G) -> 2047 | G4: =SUM('Enter Local Program Data'!H:H) -> 6584054 | H4: =SUM('Enter Local Program Data'!I:I) -> 10850569 | J4: =ROUND(AVERAGE('Enter Local Program Data'!R:R),2) -> 0.45 | K4: =ROUND(AVERAGE('Enter Local Program Data'!AM:AM),2) -> 0.31 | L4: =ROUND(AVERAGE('Enter Local Program Data'!T:T),2) -> 0.52 | M4: =ROUND(AVERAGE('Enter Local Program Data'!AN:AN),2) -> 0.49
B5: Count | G5: =COUNTA('Enter Local Program Data'!G4:G1102) -> 6 | H5: =COUNTA('Enter Local Program Data'!H4:H1102) -> 6 | K5: =COUNT('Enter Local Program Data'!AM:AM) -> 6 | M5: =COUNT('Enter Local Program Data'!AN:AN) -> 6
B6: Average | G6: =G4/G5 -> 1097342.333 | H6: =H4/H5 -> 1808428.167

Sheet Calc (hidden)
I1: ProgramName: | J1: =Dashboard!C1 -> Wise Kids
A2: 1 | B2: ="Percent of Children Referred for EI Services who are Evaluated, Eligible, and Served Statewide and by "&J1 -> Percent of Children Referred for EI Services who are Evaluated, Eligible, and Served Statewide and by Wise Kids | J2: internal page calc
A3: Data source | D3: Referred for EI Services | E3: Evaluated | F3: Eligible | G3: Served | J3: Referred for EI Services | K3: Evaluated | L3: Eligible | M3: Served
A4: Statewide | C4: Statewide | D4: =Statewide!C4 -> 2570 | E4: =Statewide!D4 -> 2337 | F4: =Statewide!E4 -> 2216 | G4: =Statewide!F4 -> 2047 | I4: Statewide | J4: =ROUND(D4/$D4,2) -> 1 | K4: 0.91 | L4: 0.86 | M4: 0.8
A5: Enter Local Program Data | C5: Local | D5: =IFERROR(VLOOKUP($J$1,'Enter Local Program Data'!B:G,3,FALSE),0) -> 700 | E5: =IFERROR(VLOOKUP($J$1,'Enter Local Program Data'!B:G,4,FALSE),0) -> 650 | F5: =IFERROR(VLOOKUP($J$1,'Enter Local Program Data'!B:G,5,FALSE),0) -> 650 | G5: =IFERROR(VLOOKUP($J$1,'Enter Local Program Data'!B:G,6,FALSE),0) -> 650 | I5: =Dashboard!$C$1 -> Wise Kids | J5: 1 | K5: 0.93 | L5: 0.93 | M5: 0.93
A7: 2 | B7: ="Total Expenses by Type for Statewide Average and "&J1&"Infrastructure & Administrative vs. Direct Services" -> Total Expenses by Type for Statewide Average and Wise KidsInfrastructure & Administrative vs. Direct Services | D7: Enter Local Program Data | E7: Statewide | J7: internal page calc
D8: =Dashboard!C1 -> Wise Kids | E8: Statewide Average | J8: =Dashboard!$C$1 -> Wise Kids | K8: Statewide Average
C9: Infrastructure and Administrative | D9: =IFERROR(ROUND(VLOOKUP(J1,'Enter Local Program Data'!B:I,7,FALSE),0),0) -> 1212121 | E9: =IFERROR(ROUND(Statewide!G6,0),0) -> 1097342 | I9: Infrastructure and Administrative | J9: =ROUND(D9/SUM(D9:D10),2) -> 0.36 | K9: =ROUND(E9/SUM(E9:E10),2) -> 0.38
C10: Direct Services | D10: =IFERROR(ROUND(VLOOKUP(J1,'Enter Local Program Data'!B:I,8,FALSE),0),0) -> 2121212 | E10: =IFERROR(ROUND(Statewide!H6,0),0) -> 1808428 | I10: Direct Services | J10: =ROUND(D10/SUM(D9:D10),2) -> 0.64 | K10: =ROUND(E10/SUM(E9:E10),2) -> 0.62
S11: Enter Local Program Data
N12: This chart sorts categories into least to greatest for display purposes
A13: 3 | B13: ="Budget by Funding Source for "&J1 -> Budget by Funding Source for Wise Kids | D13: Info pulled from chart to the right | N13: =RANK(S13,$S$13:$S$20,0) -> 7 | O13: =COUNTIFS($N$13:$N13,N13) -> 1 | P13: =N13*10+O13 -> 71 | Q13: =RANK(P13,$P$13:$P$20,0) -> 2 | R13: Local Funds | S13: =VLOOKUP(J1,'Enter Local Program Data'!B:Q,9,FALSE) -> 7500 | T13: =IFERROR(S13/$S$21,"-") -> 0.000751217941
B14: Int Calculation field | C14: 1 | D14: 2 | E14: 3 | F14: 4 | G14: 5 | H14: 6 | I14: 7 | J14: 8 | K14: Total | N14: 8 | O14: =COUNTIFS($N$13:$N14,N14) -> 1 | P14: =N14*10+O14 -> 81 | Q14: 1 | R14: Family Fees | S14: =VLOOKUP(J1,'Enter Local Program Data'!B:Q,10,FALSE) -> 6000 | T14: 0.0006009743528
C15: =IFERROR(VLOOKUP(C14,$Q$13:$T$20,3,FALSE),0) -> 6000 | D15: 7500 | E15: 98500 | F15: 415000 | G15: 418265.125 | H15: 502021 | I15: 2979260.451 | J15: 5557240.539 | K15: =SUM(C15:J15) -> 9983787.115 | N15: 6 | O15: =COUNTIFS($N$13:$N15,N15) -> 1 | P15: =N15*10+O15 -> 61 | Q15: 3 | R15: CHIP | S15: =VLOOKUP(J1,'Enter Local Program Data'!B:Q,11,FALSE) -> 98500 | T15: 0.009865995625
N16: 1 | O16: =COUNTIFS($N$13:$N16,N16) -> 1 | P16: 11 | Q16: 8 | R16: Private Insurance | S16: =VLOOKUP(J1,'Enter Local Program Data'!B:Q,12,FALSE) -> 5557240.539 | T16: 0.556626506
B17: This chart takes the entered values and rounds them to the top two place values and provides percentages for display purposes. | N17: 5 | O17: =COUNTIFS($N$13:$N17,N17) -> 1 | P17: 51 | Q17: 4 | R17: Federal Part C | S17: =VLOOKUP(J1,'Enter Local Program Data'!B:Q,13,FALSE) -> 415000 | T17: 0.04156739273
B18: ="Budget by Funding Source for "&J1 -> Budget by Funding Source for Wise Kids | N18: 4 | O18: =COUNTIFS($N$13:$N18,N18) -> 1 | P18: 41 | Q18: 5 | R18: State Part C | S18: =VLOOKUP(J1,'Enter Local Program Data'!B:Q,14,FALSE) -> 418265.125 | T18: 0.04189443547
C19: =IFERROR(VLOOKUP(C14,$Q$13:$T$20,2,FALSE),R20) -> Family Fees | D19: =IFERROR(VLOOKUP(D14,$Q$13:$T$20,2,FALSE),R19) -> Local Funds | E19: =IFERROR(VLOOKUP(E14,$Q$13:$T$20,2,FALSE),R18) -> CHIP | F19: =IFERROR(VLOOKUP(F14,$Q$13:$T$20,2,FALSE),R17) -> Federal Part C | G19: =IFERROR(VLOOKUP(G14,$Q$13:$T$20,2,FALSE),R16) -> State Part C | H19: =IFERROR(VLOOKUP(H14,$Q$13:$T$20,2,FALSE),R15) -> State General Funds | I19: =IFERROR(VLOOKUP(I14,$Q$13:$T$20,2,FALSE),R14) -> Medicaid | J19: =IFERROR(VLOOKUP(J14,$Q$13:$T$20,2,FALSE),R13) -> Private Insurance | N19: 3 | O19: =COUNTIFS($N$13:$N19,N19) -> 1 | P19: 31 | Q19: 6 | R19: State General Funds | S19: =VLOOKUP(J1,'Enter Local Program Data'!B:Q,15,FALSE) -> 502021 | T19: 0.05028362426
C20: =IFERROR(IF(VLOOKUP(C14,$Q$13:$T$20,4,FALSE)<0.01,ROUND(VLOOKUP(C14,$Q$13:$T$20,4,FALSE),3),ROUND(VLOOKUP(C14,$Q$13:$T$20,4,FALSE),2)),0) -> 0.001 | D20: 0.001 | E20: 0.01 | F20: 0.04 | G20: 0.04 | H20: 0.05 | I20: 0.3 | J20: 0.56 | K20: =SUM(C20:G20) -> 0.092 | L20: =IF(K20<0.1,"ten",IF(K20<0.2,"twenty",IF(K20<0.3,"thirty",IF(K20<0.4,"forty",IF(K20<0.5,"fifty",IF(K20<0.6,"sixty",IF(K20<0.7,"seventy",""))))))) -> ten | N20: 2 | O20: =COUNTIFS($N$13:$N20,N20) -> 1 | P20: 21 | Q20: 7 | R20: Medicaid | S20: =VLOOKUP(J1,'Enter Local Program Data'!B:Q,16,FALSE) -> 2979260.451 | T20: 0.2984098536
C21: =IFERROR(ROUND(C15,1-INT(LOG(ABS(C15)))),0) -> 6000 | D21: 7500 | E21: 99000 | F21: 420000 | G21: 420000 | H21: 500000 | I21: 3000000 | J21: 5600000 | R21: sum | S21: =SUM(S13:S20) -> 9983787.115 | T21: =SUM(T13:T20) -> 1
C22: =C19 -> Family Fees | D22: Local Funds | E22: CHIP | F22: Federal Part C | G22: State Part C | H22: State General Funds | I22: Medicaid | J22: Private Insurance | L22: value above used in NOTES on Dashboard
A24: 4 and 5 | B24: ="Percent of Children Enrolled vs. Percent of Funding Budgeted for Private Insurance/Medicaid by Statewide Average and "&J1 -> Percent of Children Enrolled vs. Percent of Funding Budgeted for Private Insurance/Medicaid by Statewide Average and Wise Kids | K24: This chart sorts categories into least to greatest for display purposes. The TOTAL determines the overall order for items in the chart
A25: 4 | B25: Private Insurance | C25: internal page calc | E25: 5 | F25: Medicaid | G25: internal page calc | P25: ='View Program Data'!P27 -> Total
C26: Percentage of EI Children Enrolled in Private Insurance | D26: Percentage of Funding Budgeted for Private Insurance | G26: Percentage of EI Children Enrolled in Medicaid | H26: Percentage of Funding Budgeted for Medicaid | K26: =RANK(P26,P26:P33,0) -> 1 | L26: =COUNTIFS(K26:K26,K26) -> 1 | M26: =K26*10+L26 -> 11 | N26: =RANK(M26,M26:M33,0) -> 8 | O26: Local Funds | P26: =P37+P47 -> 300000
B27: Statewide Average | C27: =IFERROR(Statewide!J4,0) -> 0.45 | D27: =IFERROR(Statewide!K4,0) -> 0.31 | F27: Statewide Average | G27: =IFERROR(Statewide!L4,0) -> 0.52 | H27: =IFERROR(Statewide!M4,0) -> 0.49 | K27: =RANK(P27,P26:P33,0) -> 2 | L27: =COUNTIFS(K26:K27,K27) -> 1 | M27: 21 | N27: =RANK(M27,M26:M33,0) -> 7 | O27: Family Fees | P27: =P38+P48 -> 225000
B28: =Dashboard!$C$1 -> Wise Kids | C28: =IFERROR(VLOOKUP(J1,'Enter Local Program Data'!B:U,17,FALSE),0) -> 0.8 | D28: =IFERROR(VLOOKUP(J1,'Enter Local Program Data'!B:AN,38,FALSE),0) -> 0.56 | F28: =Dashboard!$C$1 -> Wise Kids | G28: =IFERROR(VLOOKUP(J1,'Enter Local Program Data'!B:U,19,FALSE),0) -> 0.27 | H28: =IFERROR(VLOOKUP(J1,'Enter Local Program Data'!B:AN,39,FALSE),0) -> 0.3 | K28: =RANK(P28,P26:P33,0) -> 3 | L28: =COUNTIFS(K26:K28,K28) -> 1 | M28: 31 | N28: =RANK(M28,M26:M33,0) -> 6 | O28: CHIP | P28: 150000
K29: =RANK(P29,P26:P33,0) -> 8 | L29: =COUNTIFS(K26:K29,K29) -> 1 | M29: 81 | N29: =RANK(M29,M26:M33,0) -> 1 | O29: Private Insurance | P29: 75000
A30: 6 | B30: ="Current Receipts and Anticipated Receipts to meet budget by Funding Source for "&J1 -> Current Receipts and Anticipated Receipts to meet budget by Funding Source for Wise Kids | E30: For Notes: TEXT TO DISPLAY | I30: For Notes: TEXT TO DISPLAY | K30: =RANK(P30,P26:P33,0) -> 6 | L30: =COUNTIFS(K26:K30,K30) -> 1 | M30: 61 | N30: =RANK(M30,M26:M33,0) -> 3 | O30: Federal Part C | P30: 90000
B31: for notes | D31: Current | E31: Current | H31: Anticipated | I31: Anticipated | K31: =RANK(P31,P26:P33,0) -> 4 | L31: =COUNTIFS(K26:K31,K31) -> 1 | M31: 41 | N31: =RANK(M31,M26:M33,0) -> 5 | O31: State Part C | P31: 105000
B32: 1 | C32: =VLOOKUP(B32,N37:O44,2,FALSE) -> Medicaid | D32: =VLOOKUP(B32,N37:P44,3,FALSE) -> 10000 | E32: =TEXT(D32,"#,##0") -> 10,000 | G32: =VLOOKUP(B32,$N$47:$O$54,2,FALSE) -> Private Insurance | H32: =VLOOKUP(B32,$N$47:$P$54,3,FALSE) -> 25000 | I32: =TEXT(H32,"#,##0") -> 25,000 | K32: =RANK(P32,P26:P33,0) -> 5 | L32: =COUNTIFS(K26:K32,K32) -> 1 | M32: 51 | N32: =RANK(M32,M26:M33,0) -> 4 | O32: State General Funds | P32: 96000
B33: 2 | C33: =VLOOKUP(B33,N37:O44,2,FALSE) -> State General Funds | D33: =VLOOKUP(B33,N37:P44,3,FALSE) -> 20000 | E33: =TEXT(D33,"#,##0") -> 20,000 | G33: Federal Part C | H33: 50000 | I33: =TEXT(H33,"#,##0") -> 50,000 | K33: =RANK(P33,P26:P33,0) -> 7 | L33: =COUNTIFS(K26:K33,K33) -> 1 | M33: 71 | N33: =RANK(M33,M26:M33,0) -> 2 | O33: Medicaid | P33: 87000
B34: 3 | C34: =VLOOKUP(B34,N37:O44,2,FALSE) -> State Part C | D34: =VLOOKUP(B34,N37:P44,3,FALSE) -> 30000 | E34: =TEXT(D34,"#,##0") -> 30,000 | G34: CHIP | H34: 50000 | I34: 50,000
B35: 4 | C35: =VLOOKUP(B35,N37:O44,2,FALSE) -> Federal Part C | D35: =VLOOKUP(B35,N37:P44,3,FALSE) -> 40000 | E35: =TEXT(D35,"#,##0") -> 40,000 | G35: State Part C | H35: 75000 | I35: 75,000
B36: 5 | C36: =VLOOKUP(B36,N37:O44,2,FALSE) -> Private Insurance | D36: =VLOOKUP(B36,N37:P44,3,FALSE) -> 50000 | E36: 50,000 | G36: Family Fees | H36: 75000 | I36: 75,000 | K36: This chart sorts categories into least to greatest for display purposes | P36: ='View Program Data'!H27 -> Current
B37: 6 | C37: =VLOOKUP(B37,N37:O44,2,FALSE) -> CHIP | D37: =VLOOKUP(B37,N37:P44,3,FALSE) -> 100000 | E37: 100,000 | G37: State General Funds | H37: 76000 | I37: 76,000 | K37: =RANK(P37,P37:P44,0) -> 1 | L37: =COUNTIFS(K37:K37,K37) -> 1 | M37: =K37*10+L37 -> 11 | N37: =RANK(M37,M37:M44,0) -> 8 | O37: Local Funds | P37: =VLOOKUP(J1,'Enter Local Program Data'!B:AK,21,FALSE) -> 200000
B38: 7 | C38: =VLOOKUP(B38,N37:O44,2,FALSE) -> Family Fees | D38: =VLOOKUP(B38,N37:P44,3,FALSE) -> 150000 | E38: 150,000 | G38: Medicaid | H38: 77000 | I38: 77,000 | K38: =RANK(P38,P37:P44,0) -> 2 | L38: =COUNTIFS(K37:K38,K38) -> 1 | M38: 21 | N38: =RANK(M38,M37:M44,0) -> 7 | O38: Family Fees | P38: =VLOOKUP(J1,'Enter Local Program Data'!B:AK,23,FALSE) -> 150000
B39: 8 | C39: =VLOOKUP(B39,N37:O44,2,FALSE) -> Local Funds | D39: =VLOOKUP(B39,N37:P44,3,FALSE) -> 200000 | E39: 200,000 | G39: Local Funds | H39: 100000 | I39: 100,000 | K39: =RANK(P39,P37:P44,0) -> 3 | L39: =COUNTIFS(K37:K39,K39) -> 1 | M39: 31 | N39: =RANK(M39,M37:M44,0) -> 6 | O39: CHIP | P39: =VLOOKUP(J1,'Enter Local Program Data'!B:AK,25,FALSE) -> 100000
C40: TOTAL REVENUE | D40: =SUM(D32:D39) -> 600000 | E40: 600,000 | G40: TOTAL REVENUE | H40: =SUM(H32:H39) -> 528000 | I40: 528,000 | K40: =RANK(P40,P37:P44,0) -> 4 | L40: =COUNTIFS(K37:K40,K40) -> 1 | M40: 41 | N40: =RANK(M40,M37:M44,0) -> 5 | O40: Private Insurance | P40: =VLOOKUP(J1,'Enter Local Program Data'!B:AK,27,FALSE) -> 50000
K41: =RANK(P41,P37:P44,0) -> 5 | L41: =COUNTIFS(K37:K41,K41) -> 1 | M41: 51 | N41: =RANK(M41,M37:M44,0) -> 4 | O41: Federal Part C | P41: =VLOOKUP(J1,'Enter Local Program Data'!B:AK,29,FALSE) -> 40000
B42: GRAPH TO DISPLAY | D42: Current | E42: Anticipated | K42: =RANK(P42,P37:P44,0) -> 6 | L42: =COUNTIFS(K37:K42,K42) -> 1 | M42: 61 | N42: =RANK(M42,M37:M44,0) -> 3 | O42: State Part C | P42: =VLOOKUP(J1,'Enter Local Program Data'!B:AK,31,FALSE) -> 30000
B43: 1 | C43: =IFERROR(VLOOKUP(B43,$N$26:$O$33,2,FALSE),O26) -> Private Insurance | D43: =ROUND(VLOOKUP($C43,$O$37:$P$44,2,FALSE),0) -> 50000 | E43: =ROUND(VLOOKUP($C43,$O$47:$P$54,2,FALSE),0) -> 25000 | K43: =RANK(P43,P37:P44,0) -> 7 | L43: =COUNTIFS(K37:K43,K43) -> 1 | M43: 71 | N43: =RANK(M43,M37:M44,0) -> 2 | O43: State General Funds | P43: =VLOOKUP(J1,'Enter Local Program Data'!B:AK,33,FALSE) -> 20000
B44: 2 | C44: Medicaid | D44: =ROUND(VLOOKUP($C44,$O$37:$P$44,2,FALSE),0) -> 10000 | E44: =ROUND(VLOOKUP($C44,$O$47:$P$54,2,FALSE),0) -> 77000 | K44: =RANK(P44,P37:P44,0) -> 8 | L44: =COUNTIFS(K37:K44,K44) -> 1 | M44: 81 | N44: =RANK(M44,M37:M44,0) -> 1 | O44: Medicaid | P44: =VLOOKUP(J1,'Enter Local Program Data'!B:AK,35,FALSE) -> 10000
B45: 3 | C45: Federal Part C | D45: 40000 | E45: 50000
B46: 4 | C46: State General Funds | D46: 20000 | E46: 76000 | K46: This chart sorts categories into least to greatest for display purposes | P46: ='View Program Data'!L27 -> Anticipated
B47: 5 | C47: State Part C | D47: 30000 | E47: 75000 | K47: =RANK(P47,P47:P54,0) -> 1 | L47: =COUNTIFS(K47:K47,K47) -> 1 | M47: =K47*10+L47 -> 11 | N47: =RANK(M47,M47:M54,0) -> 8 | O47: Local Funds | P47: =VLOOKUP(J1,'Enter Local Program Data'!B:AK,22,FALSE) -> 100000
B48: 6 | C48: CHIP | D48: 100000 | E48: 50000 | K48: =RANK(P48,P47:P54,0) -> 4 | L48: =COUNTIFS(K47:K48,K48) -> 1 | M48: 41 | N48: =RANK(M48,M47:M54,0) -> 5 | O48: Family Fees | P48: =VLOOKUP(J1,'Enter Local Program Data'!B:AK,24,FALSE) -> 75000
B49: 7 | C49: Family Fees | D49: 150000 | E49: 75000 | K49: =RANK(P49,P47:P54,0) -> 6 | L49: =COUNTIFS(K47:K49,K49) -> 1 | M49: 61 | N49: =RANK(M49,M47:M54,0) -> 3 | O49: CHIP | P49: =VLOOKUP(J1,'Enter Local Program Data'!B:AK,26,FALSE) -> 50000
B50: 8 | C50: Local Funds | D50: 200000 | E50: 100000 | K50: =RANK(P50,P47:P54,0) -> 8 | L50: =COUNTIFS(K47:K50,K50) -> 1 | M50: 81 | N50: =RANK(M50,M47:M54,0) -> 1 | O50: Private Insurance | P50: =VLOOKUP(J1,'Enter Local Program Data'!B:AK,28,FALSE) -> 25000
K51: =RANK(P51,P47:P54,0) -> 6 | L51: =COUNTIFS(K47:K51,K51) -> 2 | M51: 62 | N51: =RANK(M51,M47:M54,0) -> 2 | O51: Federal Part C | P51: =VLOOKUP(J1,'Enter Local Program Data'!B:AK,30,FALSE) -> 50000
K52: =RANK(P52,P47:P54,0) -> 4 | L52: =COUNTIFS(K47:K52,K52) -> 2 | M52: 42 | N52: =RANK(M52,M47:M54,0) -> 4 | O52: State Part C | P52: =VLOOKUP(J1,'Enter Local Program Data'!B:AK,32,FALSE) -> 75000
K53: =RANK(P53,P47:P54,0) -> 3 | L53: =COUNTIFS(K47:K53,K53) -> 1 | M53: 31 | N53: =RANK(M53,M47:M54,0) -> 6 | O53: State General Funds | P53: =VLOOKUP(J1,'Enter Local Program Data'!B:AK,34,FALSE) -> 76000
K54: =RANK(P54,P47:P54,0) -> 2 | L54: =COUNTIFS(K47:K54,K54) -> 1 | M54: 21 | N54: =RANK(M54,M47:M54,0) -> 7 | O54: Medicaid | P54: =VLOOKUP(J1,'Enter Local Program Data'!B:AK,36,FALSE) -> 77000
